[Event "GER-ch Rapid Women 2017"]
[Site "Erfurt"]
[Date "2017.07.29"]
[Round "1"]
[White "Michna, Marta"]
[Black "Daemering, Katrin"]
[Result "1-0"]
[ECO "A05"]
[WhiteElo "2377"]
[BlackElo "2033"]
[Annotator "ChessBase"]
[PlyCount "87"]
[EventDate "2017.??.??"]
[EventType "swiss"]
[EventCountry "GER"]
[SourceTitle "playchess.com"]
[Source "ChessBase"]
[SourceQuality "1"]
[TimeControl "1200"]

1. Nf3 {[%emt 0:00:02]} Nf6 {[%emt 0:00:02]} 2. g3 {[%emt 0:00:01]} g6 3. Bg2 Bg7 {[%emt 0:00:03]} 4. O-O {[%emt 0:00:02]} d6 {[%emt 0:00:01]} 5. d3 {[%emt 0:00:02]} O-O {[%emt 0:00:09]} 6. e4 {[%emt 0:00:01]} e5 {[%emt 0:00:24]} 7. h3 {[%emt 0:00:27]} Nc6 {[%emt 0:00:21]} 8. c3 {[%emt 0:00:22]} h6 {[%emt 0:00:13]} 9. b4 {[%emt 0:00:57]} Be6 {[%emt 0:00:21]} 10. a4 {[%emt 0:00:08]} a6 {[%emt 0:00:48]} 11. Kh2 {[%emt 0:00:14]} Ne8 {[%emt 0:00:21]} 12. Nh4 {[%emt 0:00:14]} Kh7 {[%emt 0:00:39]} 13. Bb2 {[%emt 0:00:48]} Rb8 {[%emt 0:02:18]} 14. b5 {[%emt 0:01:16]} Ne7 {[%emt 0:00:25]} 15. f4 {[%emt 0:01:28]} exf4 {[%emt 0:00:43]} 16. gxf4 {[%emt 0:00:01]} f5 {[%emt 0:00:20]} 17. Nd2 {[%emt 0:01:29]} fxe4 {[%emt 0:01:51]} 18. Bxe4 {[%emt 0:00:27]} Nf5 {[%emt 0:00:15]} 19. Nxf5 {[%emt 0:00:23]} Bxf5 {[%emt 0:00:01]} 20. Qe2 {[%emt 0:00:45]} Qh4 {[%emt 0:00:47]} 21. Bxf5 {[%emt 0:01:39]} Rxf5 {[%emt 0:00:01]} 22. d4 {[%emt 0:02:02]} Rxf4 {[%emt 0:00:55]} 23. Nf3 {[%emt 0:00:21]} Re4 {[%emt 0:00:50]} 24. Qg2 {[%emt 0:00:45]} Qe7 {[%emt 0:00:41]} 25. Rae1 {[%emt 0:00:06]} Rxe1 {[%emt 0:00:12]} 26. Rxe1 {[%emt 0:00:02]} Qf7 {[%emt 0:00:12]} 27. Bc1 {[%emt 0:00:16]} axb5 {[%emt 0:00:32]} 28. axb5 {[%emt 0:00:01]} Ra8 {[%emt 0:00:01]} 29. Rg1 {[%emt 0:00:34]} Ra2 {[%emt 0:00:22]} 30. Bd2 {[%emt 0:00:01]} Nf6 {[%emt 0:00:25]} 31. Kh1 {[%emt 0:00:24]} Ne4 {[%emt 0:00:40]} 32. Rf1 {[%emt 0:00:49]} Qf5 {[%emt 0:01:26]} 33. Ng5+ {[%emt 0:00:25]} Qxg5 {[%emt 0:00:02]} 34. Bxg5 {[%emt 0:00:04]} Rxg2 {[%emt 0:00:02]} 35. Kxg2 {[%emt 0:00:03]} Nxg5 {[%emt 0:00:02]} 36. Re1 {[%emt 0:00:59]} c6 {[%emt 0:00:32]} 37. b6 {[%emt 0:00:09]} Bf6 {[%emt 0:00:20]} 38. Re8 {[%emt 0:00:07]} c5 {[%emt 0:00:36]} 39. dxc5 {[%emt 0:00:36]} dxc5 {[%emt 0:00:02]} 40. Rb8 {[%emt 0:00:04]} Bxc3 {[%emt 0:00:03]} 41. Rxb7+ {[%emt 0:00:02]} Kg8 {[%emt 0:00:02]} 42. Rc7 {[%emt 0:00:15]} Ba5 {[%emt 0:00:07]} 43. Rc8+ {[%emt 0:00:03]} Kf7 {[%emt 0:00:02]} 44. b7 {[%emt 0:00:01]} 1-0

[Event "GER-ch Rapid Women 2017"]
[Site "Erfurt"]
[Date "2017.07.29"]
[Round "1"]
[White "Osmanodja, Filiz"]
[Black "Zimmer, Elke"]
[Result "1-0"]
[ECO "C96"]
[WhiteElo "2273"]
[BlackElo "1950"]
[Annotator "NA"]
[PlyCount "173"]
[EventDate "2017.??.??"]
[EventType "swiss"]
[EventCountry "GER"]
[SourceTitle "playchess.com"]
[Source "ChessBase"]
[SourceQuality "1"]
[TimeControl "1200"]

1. e4 {[%emt 0:00:01]} e5 {[%emt 0:00:01]} 2. Nf3 {[%emt 0:00:01]} Nc6 {[%emt 0:00:00]} 3. Bb5 {[%emt 0:00:02]} a6 {[%emt 0:00:11]} 4. Ba4 {[%emt 0:00:01]} Nf6 {[%emt 0:00:07]} 5. O-O {[%emt 0:00:02]} d6 {[%emt 0:00:10]} 6. Re1 {[%emt 0:02:20]} Be7 {[%emt 0:00:10]} 7. h3 {[%emt 0:00:15]} O-O {[%emt 0:00:03]} 8. c3 {[%emt 0:00:01]} b5 {[%emt 0:00:41]} 9. Bb3 {[%emt 0:00:17]} Na5 {[%emt 0:00:06]} 10. Bc2 {[%emt 0:00:02]} c5 {[%emt 0:00:14]} 11. d4 {[%emt 0:00:02]} Bb7 {[%emt 0:00:07]} 12. d5 {[%emt 0:00:04]} Nc4 {[%emt 0:01:00]} 13. b3 {[%emt 0:00:51] C96: Closed Ruy Lopez: Chigorin Defence: 11 d4, replies other than 11...Qc7} (13. a4 Nb6 14. b3 Bc8 15. Qe2 Bd7 16. Be3 bxa4 17. bxa4 Qe8 18. a5 Bb5 19. Bd3 Bxd3 20. Qxd3 Qb5 21. Qc2 Nc4 22. Nbd2 Nxe3 23. Rxe3 {0-1 (65) Saric,I (2668)-Rapport,R (2752) Monzon 2016}) 13... Nb6 {[%emt 0:00:02]} 14. Nbd2 {[%emt 0:00:04]} a5 {[%emt 0:00:44]} 15. Nf1 {[%emt 0:00:24]} Re8 {[%emt 0:00:44]} ({Find the theoretical novelty and annotate with similar games:} 15... Qc7 16. Ng3 a4 17. Be3 axb3 18. axb3 Rxa1 19. Qxa1 Ra8 20. Qb2 Bc8 {½-½ (41) Valak,A (2250)-Splichal,J (2279) ICCF email 2004}) 16. Ng3 {[%emt 0:00:10]} Bc8 {[%emt 0:00:02]} 17. Qe2 {[%emt 0:00:48]} b4 {[%emt 0:00:23]} 18. Bd2 {[%emt 0:00:50]} Nbd7 {[%emt 0:00:04]} 19. Nf5 {[%emt 0:00:16]} Nf8 {[%emt 0:00:02]} 20. N3h4 {[%emt 0:00:37]} Ng6 {[%emt 0:00:07]} 21. Nxe7+ {[%emt 0:00:13]} Qxe7 {[%emt 0:00:03]} 22. Nf5 {[%emt 0:00:14]} Qc7 {[%emt 0:00:16]} 23. c4 {[%emt 0:00:18]} Bd7 {[%emt 0:00:41]} 24. Bg5 {[%emt 0:00:15]} Nf4 {[%emt 0:00:37]} 25. Qf3 {[%emt 0:00:58]} Bxf5 {[%emt 0:00:18]} 26. exf5 {[%emt 0:00:01]} N4h5 {[%emt 0:00:18]} 27. g4 {[%emt 0:00:28]} Nf4 {[%emt 0:00:15]} 28. Bxf4 {[%emt 0:00:30]} exf4 {[%emt 0:00:01]} 29. Qxf4 {[%emt 0:00:03]} Qd7 {[%emt 0:00:01]} 30. g5 {[%emt 0:00:33]} Rxe1+ {[%emt 0:00:02]} 31. Rxe1 {[%emt 0:00:01]} Re8 {[%emt 0:00:01]} 32. Rf1 {[%emt 0:03:16]} Nh5 {[%emt 0:01:52]} 33. Qg4 {[%emt 0:00:01]} g6 {[%emt 0:00:01]} 34. fxg6 {[%emt 0:00:01]} Qxg4+ {[%emt 0:00:04]} 35. hxg4 {[%emt 0:00:01]} Nf4 {[%emt 0:00:08]} 36. gxh7+ {[%emt 0:00:05]} Kh8 {[%emt 0:00:00]} 37. Kh2 {[%emt 0:01:08]} Re2 {[%emt 0:00:18]} 38. Bf5 {[%emt 0:00:02]} Ng6 {[%emt 0:00:11]} 39. Bb1 {[%emt 0:00:29]} Kxh7 {[%emt 0:00:08]} 40. Kg3 {[%emt 0:00:02]} Kg7 {[%emt 0:00:02]} 41. f4 {[%emt 0:00:07]} Re3+ {[%emt 0:01:02]} 42. Kf2 {[%emt 0:00:00]} Rc3 {[%emt 0:00:00]} 43. Bxg6 {[%emt 0:00:41]} Kxg6 {[%emt 0:00:09]} 44. Re1 {[%emt 0:00:01]} Rh3 {[%emt 0:00:11]} 45. Kg2 {[%emt 0:00:21]} Rc3 {[%emt 0:00:03]} 46. Re2 {[%emt 0:00:02]} Rd3 {[%emt 0:00:04]} 47. Kf2 {[%emt 0:00:02]} Rh3 {[%emt 0:00:01]} 48. Kg2 {[%emt 0:00:10]} Rc3 {[%emt 0:00:02]} 49. Kf1 {[%emt 0:00:28]} Rf3+ {[%emt 0:00:12]} 50. Rf2 {[%emt 0:00:01]} Rg3 {[%emt 0:00:00]} 51. Ke2 {[%emt 0:00:18]} Rxg4 {[%emt 0:00:01]} 52. Kf3 {[%emt 0:00:13]} Rh4 {[%emt 0:00:01]} 53. Kg3 {[%emt 0:00:03]} Rh1 {[%emt 0:00:03]} 54. Rh2 {[%emt 0:00:01]} Rg1+ $1 {[%emt 0:00:23]} 55. Kf2 {[%emt 0:00:05]} Ra1 {[%emt 0:00:01]} 56. Kf3 {[%emt 0:00:01]} Rf1+ {[%emt 0:00:13]} 57. Kg3 {[%emt 0:00:10]} Rg1+ $11 {[%emt 0:00:11]} 58. Rg2 {[%emt 0:00:14]} Rc1 {[%emt 0:00:07]} 59. Kg4 {[%emt 0:00:04]} Rd1 {[%emt 0:00:09]} 60. f5+ {[%emt 0:00:05]} Kg7 {[%emt 0:00:01]} 61. Rh2 {[%emt 0:00:06]} Rd4+ {[%emt 0:00:01]} 62. Kh5 {[%emt 0:00:02]} f6 {[%emt 0:00:31]} 63. Re2 {[%emt 0:00:01]} fxg5 {[%emt 0:00:05]} 64. Kxg5 {[%emt 0:00:01]} Kf7 {[%emt 0:00:04]} 65. Rh2 {[%emt 0:00:02]} Re4 {[%emt 0:00:22]} 66. Rh7+ {[%emt 0:00:01]} Kg8 {[%emt 0:00:02]} 67. Ra7 {[%emt 0:00:01]} Re2 {[%emt 0:00:06]} 68. Rxa5 {[%emt 0:00:02]} Rg2+ {[%emt 0:00:12]} 69. Kf6 {[%emt 0:00:00]} Kh7 {[%emt 0:00:00]} 70. Kf7 {[%emt 0:00:02]} Rg7+ {[%emt 0:00:05]} 71. Kf6 {[%emt 0:00:02]} Rg2 {[%emt 0:00:01]} 72. Ra7+ {[%emt 0:00:01]} Kh6 {[%emt 0:00:02]} 73. Ra8 {[%emt 0:00:04]} Kh7 {[%emt 0:00:01]} 74. Ra7+ {[%emt 0:00:01]} Kh6 {[%emt 0:00:01]} 75. Ra6 {[%emt 0:00:01]} Kh7 {[%emt 0:00:11]} 76. Kf7 {[%emt 0:00:01]} Rg7+ {[%emt 0:00:02]} 77. Kf6 {[%emt 0:00:01]} Rg2 {[%emt 0:00:04]} 78. Rxd6 {[%emt 0:00:01]} Rxa2 {[%emt 0:00:01]} 79. Rd7+ {[%emt 0:00:01]} Kg8 {[%emt 0:00:02]} 80. Rg7+ {[%emt 0:00:03]} Kh8 {[%emt 0:00:03]} 81. d6 {[%emt 0:00:02]} Ra6 {[%emt 0:00:02]} 82. Ke7 {[%emt 0:00:02]} Ra7+ {[%emt 0:00:09]} 83. d7 {[%emt 0:00:03]} Rxd7+ {[%emt 0:00:01]} 84. Kxd7 {[%emt 0:00:00]} Kxg7 {[%emt 0:00:01]} 85. Ke7 {[%emt 0:00:01]} Kh6 86. f6 Kg6 87. f7 1-0

[Event "GER-ch Rapid Women 2017"]
[Site "Erfurt"]
[Date "2017.07.29"]
[Round "1"]
[White "Rogozenco, Teodora"]
[Black "Perez Celis, Alba"]
[Result "1-0"]
[ECO "A85"]
[WhiteElo "2169"]
[BlackElo "1790"]
[Annotator "NA"]
[PlyCount "35"]
[EventDate "2017.??.??"]
[EventType "swiss"]
[EventCountry "GER"]
[SourceTitle "playchess.com"]
[Source "ChessBase"]
[SourceQuality "1"]
[TimeControl "1200"]

1. d4 {[%emt 0:00:01]} f5 {[%emt 0:00:03]} 2. c4 {[%emt 0:00:01]} Nf6 {[%emt 0:00:04]} 3. Nc3 {[%emt 0:00:02]} g6 {[%emt 0:00:03]} 4. h4 {[%emt 0:00:01]} Bg7 {[%emt 0:00:03]} 5. h5 {[%emt 0:00:02]} Nxh5 {[%emt 0:00:03]} 6. e4 {[%emt 0:00:38]} Nf6 {[%emt 0:00:10]} 7. e5 {[%emt 0:01:58]} Ne4 {[%emt 0:00:02]} 8. Nxe4 {[%emt 0:00:08]} fxe4 {[%emt 0:00:02]} 9. Qg4 {[%emt 0:01:16]} d5 {[%emt 0:00:00]} 10. e6 {[%emt 0:00:02]} O-O {[%emt 0:07:14]} 11. Nh3 {[%emt 0:00:01]} Qd6 {[%emt 0:00:43]} 12. Nf4 {[%emt 0:04:51]} Bxd4 {[%emt 0:00:21]} 13. cxd5 {[%emt 0:01:14]} Qb4+ {[%emt 0:00:23]} 14. Bd2 {[%emt 0:05:07]} Bxf2+ {[%emt 0:00:06]} 15. Kd1 {[%emt 0:01:04]} Qxb2 {[%emt 0:01:17]} 16. Rc1 {[%emt 0:00:01]} e3 {[%emt 0:00:16]} 17. Bc3 {[%emt 0:00:13]} Qxa2 {[%emt 0:00:49]} 18. Qxg6+ {[%emt 0:00:02]} 1-0

[Event "GER-ch Rapid Women 2017"]
[Site "Erfurt"]
[Date "2017.07.29"]
[Round "1"]
[White "Hess, Olena"]
[Black "Kinzel, Tiffany"]
[Result "1-0"]
[ECO "A06"]
[WhiteElo "2094"]
[BlackElo "1755"]
[Annotator "NA"]
[PlyCount "127"]
[EventDate "2017.??.??"]
[EventType "swiss"]
[EventCountry "GER"]
[SourceTitle "playchess.com"]
[Source "ChessBase"]
[SourceQuality "1"]
[TimeControl "1200"]

1. Nf3 {[%emt 0:00:01]} d5 {[%emt 0:00:06]} 2. d4 {[%emt 0:00:03]} e6 {[%emt 0:00:16]} 3. c4 {[%emt 0:00:03]} b6 {[%emt 0:00:45]} 4. Nc3 {[%emt 0:00:30]} Bd6 {[%emt 0:01:12]} 5. cxd5 {[%emt 0:00:36]} exd5 {[%emt 0:00:12]} 6. Nxd5 {[%emt 0:00:51]} Bxh2 {[%emt 0:01:36]} 7. Nxb6 {[%emt 0:02:19]} axb6 {[%emt 0:02:02]} 8. Rxh2 {[%emt 0:00:07]} Nf6 {[%emt 0:00:39]} 9. e3 {[%emt 0:03:43]} Bf5 {[%emt 0:01:00]} 10. Bd3 {[%emt 0:00:46]} Qd5 {[%emt 0:01:45]} 11. Bxf5 {[%emt 0:01:21]} Qxf5 {[%emt 0:00:04]} 12. Ne5 {[%emt 0:00:55]} Nbd7 {[%emt 0:02:44]} 13. Qf3 {[%emt 0:01:00]} Qxf3 {[%emt 0:01:02]} 14. Nxf3 {[%emt 0:00:02]} O-O {[%emt 0:00:29]} 15. Bd2 {[%emt 0:00:05]} Ne4 {[%emt 0:00:15]} 16. a3 {[%emt 0:00:12]} Ndf6 {[%emt 0:00:27]} 17. Rc1 {[%emt 0:00:16]} Rac8 {[%emt 0:00:13]} 18. Ne5 {[%emt 0:00:50]} c5 {[%emt 0:00:32]} 19. f3 {[%emt 0:01:06]} Ng5 {[%emt 0:00:09]} 20. dxc5 {[%emt 0:00:31]} bxc5 {[%emt 0:00:06]} 21. Ke2 {[%emt 0:00:06]} Rfe8 {[%emt 0:00:11]} 22. Nd3 {[%emt 0:00:18]} c4 {[%emt 0:00:06]} 23. Nb4 {[%emt 0:00:02]} Ne6 {[%emt 0:00:08]} 24. Kf2 {[%emt 0:00:10]} Nd7 {[%emt 0:00:21]} 25. Rhh1 {[%emt 0:00:12]} Nb6 {[%emt 0:00:09]} 26. Bc3 {[%emt 0:00:11]} Nc5 {[%emt 0:00:09]} 27. Rcd1 {[%emt 0:00:06]} Re7 {[%emt 0:00:19]} 28. Rd6 {[%emt 0:00:06]} Nba4 {[%emt 0:00:14]} 29. Rhd1 {[%emt 0:00:02]} Ree8 {[%emt 0:00:05]} 30. Bd4 {[%emt 0:00:08]} Nb3 {[%emt 0:00:14]} 31. Rd2 {[%emt 0:00:10]} h6 {[%emt 0:00:05]} 32. Ra6 {[%emt 0:00:09]} Nxd2 {[%emt 0:00:04]} 33. Rxa4 {[%emt 0:00:05]} Nb3 {[%emt 0:00:05]} 34. Bc3 {[%emt 0:00:05]} Re6 {[%emt 0:00:04]} 35. Ra7 {[%emt 0:00:05]} Rce8 {[%emt 0:00:01]} 36. e4 {[%emt 0:00:01]} Rd6 {[%emt 0:00:03]} 37. Nd5 {[%emt 0:00:02]} Nc5 {[%emt 0:00:04]} 38. Kg3 {[%emt 0:00:07]} Rg6+ {[%emt 0:00:05]} 39. Kh2 {[%emt 0:00:05]} Rb8 {[%emt 0:00:07]} 40. Ne7+ {[%emt 0:00:02]} Kh7 {[%emt 0:00:01]} 41. Nxg6 {[%emt 0:00:01]} Kxg6 {[%emt 0:00:02]} 42. Rc7 {[%emt 0:00:03]} Nd3 {[%emt 0:00:02]} 43. Rc6+ {[%emt 0:00:05]} Kh7 {[%emt 0:00:01]} 44. Rxc4 {[%emt 0:00:02]} Nxb2 {[%emt 0:00:01]} 45. Rb4 {[%emt 0:00:09]} Rxb4 {[%emt 0:00:07]} 46. Bxb4 {[%emt 0:00:04]} Nc4 {[%emt 0:00:03]} 47. Kg3 {[%emt 0:00:03]} Kg6 {[%emt 0:00:01]} 48. Kf4 {[%emt 0:00:01]} Kf6 {[%emt 0:00:01]} 49. Bc3+ {[%emt 0:00:03]} Kg6 {[%emt 0:00:02]} 50. a4 {[%emt 0:00:01]} f6 {[%emt 0:00:07]} 51. a5 {[%emt 0:00:02]} Nxa5 {[%emt 0:00:10]} 52. Bxa5 {[%emt 0:00:01]} Kf7 {[%emt 0:00:01]} 53. Kf5 {[%emt 0:00:03]} g6+ {[%emt 0:00:03]} 54. Kf4 {[%emt 0:00:01]} Ke6 {[%emt 0:00:01]} 55. Bc3 {[%emt 0:00:02]} g5+ {[%emt 0:00:10]} 56. Kg4 {[%emt 0:00:01]} Kf7 {[%emt 0:00:03]} 57. Kf5 {[%emt 0:00:02]} Kg7 {[%emt 0:00:01]} 58. Bxf6+ {[%emt 0:00:01]} Kf7 {[%emt 0:00:01]} 59. e5 {[%emt 0:00:03]} Ke8 {[%emt 0:00:09]} 60. e6 {[%emt 0:00:04]} Kf8 {[%emt 0:00:05]} 61. Kg6 {[%emt 0:00:02]} g4 {[%emt 0:00:03]} 62. fxg4 {[%emt 0:00:04]} Kg8 {[%emt 0:00:03]} 63. e7 {[%emt 0:00:09]} h5 {[%emt 0:00:01]} 64. e8=Q# {[%emt 0:00:03]} 1-0

[Event "GER-ch Rapid Women 2017"]
[Site "Erfurt"]
[Date "2017.07.29"]
[Round "1"]
[White "Birkholz, Olga"]
[Black "Fuchs, Judith"]
[Result "0-1"]
[ECO "A43"]
[WhiteElo "2076"]
[BlackElo "2285"]
[Annotator "NA"]
[PlyCount "87"]
[EventDate "2017.??.??"]
[EventType "swiss"]
[EventCountry "GER"]
[SourceTitle "playchess.com"]
[Source "ChessBase"]
[SourceQuality "1"]
[TimeControl "1200"]

1. d4 {[%emt 0:00:02]} Nf6 {[%emt 0:00:01]} 2. Nf3 {[%emt 0:00:06]} c5 {[%emt 0:00:02]} 3. d5 {[%emt 0:00:04]} b5 {[%emt 0:00:02]} 4. c4 {[%emt 0:00:28]} bxc4 {[%emt 0:00:31]} 5. Nc3 {[%emt 0:00:01]} g6 {[%emt 0:00:04]} 6. e4 {[%emt 0:00:10]} d6 {[%emt 0:00:04]} 7. Bxc4 {[%emt 0:00:08]} Bg7 {[%emt 0:00:03]} 8. O-O {[%emt 0:00:16]} O-O {[%emt 0:00:03] LiveBook: 37 Games} 9. Qe2 {[%emt 0:00:28] A57: Benko/Volga Gambit} (9. Bf4 Bg4 10. h3 Bxf3 11. Qxf3 Nbd7 12. Qe2 Rb8 13. Rab1 Ne8 14. Qc2 Nc7 15. a3 a6 16. a4 Rb4 {1-0 (113) Ribli,Z (2552)-Rogulj,B (2422) Slovenia 2014}) 9... Nfd7 {[%emt 0:00:37]} 10. Bg5 {[%emt 0:00:33]} Re8 $146 {[%emt 0:00:40]} ({Predecessor:} 10... Nb6 11. Bd3 c4 12. Bxc4 Nxc4 13. Qxc4 {½-½ (28) Lupik,M (2226)-Zigangirova,S (2327) Peterhof 2006}) 11. Rab1 {[%emt 0:00:48]} Qa5 {[%emt 0:00:56]} 12. Rfc1 {[%emt 0:00:15]} Ba6 {[%emt 0:00:17]} 13. Nb5 {[%emt 0:01:38]} Ne5 {[%emt 0:02:28]} 14. Nxe5 {[%emt 0:00:27]} Bxe5 {[%emt 0:00:03]} 15. Bd2 {[%emt 0:01:24]} Qd8 {[%emt 0:01:04]} 16. f4 {[%emt 0:00:41]} Bg7 {[%emt 0:00:06]} 17. Bc3 {[%emt 0:00:14]} Nd7 {[%emt 0:00:57]} 18. Nxd6 {[%emt 0:00:58]} exd6 {[%emt 0:00:03]} 19. Bxa6 {[%emt 0:00:03]} Nf6 {[%emt 0:00:09]} 20. Bd3 {[%emt 0:03:41]} (20. Bb5 $14 Re7 21. e5) 20... Nxd5 {[%emt 0:00:16]} (20... c4 $5 {[%cal Rd8b6]} 21. Bc2 (21. Bxc4 Nxe4 22. Re1 Bxc3 $17) 21... Nxd5 $11) 21. Bxg7 {[%emt 0:00:03]} Kxg7 {[%emt 0:00:08]} ({But not} 21... Nxf4 $2 22. Qf1 $18) 22. Qf3 {[%emt 0:00:24]} Nf6 {[%emt 0:00:06]} 23. Re1 {[%emt 0:00:25]} Rb8 {[%emt 0:00:23]} 24. g4 {[%emt 0:00:19]} Rb4 {[%emt 0:00:50]} 25. g5 {[%emt 0:00:17]} (25. b3 $11) 25... Nd7 {[%emt 0:00:08]} (25... Nh5 $17 26. Bc2 f6) 26. b3 {[%emt 0:00:38]} Kg8 {[%emt 0:00:59]} 27. Rbd1 {[%emt 0:00:33]} Rd4 {[%emt 0:00:40]} 28. Bb5 {[%emt 0:00:20]} Re7 {[%emt 0:00:32]} 29. a4 {[%emt 0:00:50]} Qb6 {[%emt 0:00:36]} 30. Kg2 {[%emt 0:00:25]} a6 {[%emt 0:00:49]} 31. Bc4 {[%emt 0:00:46]} Qb4 {[%emt 0:00:31]} 32. Rxd4 {[%emt 0:00:46]} cxd4 $11 {[%emt 0:00:15]} 33. Rd1 {[%emt 0:00:09]} Qb6 {[%emt 0:00:23]} 34. a5 {[%emt 0:00:22]} Qxa5 {[%emt 0:00:16]} 35. Rxd4 {[%emt 0:00:03]} Qa2+ {[%emt 0:00:14]} 36. Kg3 {[%emt 0:00:08]} Nc5 {[%emt 0:00:04]} 37. b4 {[%emt 0:00:10]} Qb2 {[%emt 0:00:10]} 38. Qe3 {[%emt 0:00:22]} Ne6 {[%emt 0:00:40]} 39. Rxd6 {[%emt 0:00:05]} Qxb4 {[%emt 0:00:07]} 40. Rc6 {[%emt 0:00:09]} a5 {[%emt 0:00:41]} 41. Rc8+ {[%emt 0:00:07]} Nf8 {[%emt 0:00:01]} 42. Qd3 {[%emt 0:00:13]} Qb6 {[%emt 0:00:23]} 43. Bd5 {[%emt 0:00:00]} a4 {[%emt 0:00:18]} 44. Qc3 {[%emt 0:00:01]} 0-1

[Event "GER-ch Rapid Women 2017"]
[Site "Erfurt"]
[Date "2017.07.29"]
[Round "1"]
[White "Ries, Jutta"]
[Black "Yueksel, Anja"]
[Result "1-0"]
[ECO "A22"]
[WhiteElo "2051"]
[BlackElo "1472"]
[Annotator "NA"]
[PlyCount "78"]
[EventDate "2017.??.??"]
[EventType "swiss"]
[EventCountry "GER"]
[SourceTitle "playchess.com"]
[Source "ChessBase"]
[SourceQuality "1"]
[TimeControl "1200"]

1. c4 {[%emt 0:00:03]} e5 {[%emt 0:00:05]} 2. Nc3 {[%emt 0:00:02]} Nf6 {[%emt 0:00:04]} 3. g3 {[%emt 0:00:01]} c6 {[%emt 0:00:38]} 4. Bg2 {[%emt 0:00:03]} Bc5 {[%emt 0:00:09]} 5. e3 {[%emt 0:00:49]} d5 {[%emt 0:00:11]} 6. cxd5 {[%emt 0:01:50]} cxd5 {[%emt 0:00:02]} 7. Qb3 {[%emt 0:00:24]} e4 {[%emt 0:00:41]} 8. Qb5+ {[%emt 0:01:04]} Nfd7 {[%emt 0:00:25]} 9. Nxd5 {[%emt 0:00:20]} a6 {[%emt 0:01:03]} 10. Qc4 {[%emt 0:00:04]} f5 {[%emt 0:02:21]} 11. Nf4 {[%emt 0:00:20]} Qe7 {[%emt 0:02:30]} 12. Nd5 Qd6 {[%emt 0:00:32]} 13. b4 {[%emt 0:06:45]} Bb6 {[%emt 0:01:35]} 14. Qxc8+ {[%emt 0:00:31]} Bd8 {[%emt 0:01:13]} 15. Qxb7 {[%emt 0:01:27]} Qc6 {[%emt 0:01:21]} 16. Qxc6 {[%emt 0:00:13]} Nxc6 {[%emt 0:00:01]} 17. Bb2 {[%emt 0:00:08]} O-O {[%emt 0:00:35]} 18. Ne2 {[%emt 0:00:16]} Rb8 {[%emt 0:00:36]} 19. a3 {[%emt 0:00:09]} Nce5 {[%emt 0:00:13]} 20. Bxe5 {[%emt 0:00:17]} Nxe5 {[%emt 0:00:03]} 21. Nef4 {[%emt 0:00:15]} Rc8 {[%emt 0:00:45]} 22. Ne6 {[%emt 0:00:19]} Nd3+ {[%emt 0:00:35]} 23. Ke2 {[%emt 0:00:03]} Re8 {[%emt 0:00:01]} 24. Nxd8 {[%emt 0:00:16]} Rexd8 {[%emt 0:00:11]} 25. Ne7+ {[%emt 0:00:04]} Kf7 {[%emt 0:00:05]} 26. Nxc8 {[%emt 0:00:02]} Rxc8 {[%emt 0:00:01]} 27. f3 {[%emt 0:00:05]} Rd8 {[%emt 0:00:55]} 28. fxe4 {[%emt 0:00:03]} fxe4 {[%emt 0:00:03]} 29. Bxe4 {[%emt 0:00:03]} Ne5 {[%emt 0:00:34]} 30. Rhf1+ {[%emt 0:00:04]} Ke6 {[%emt 0:00:11]} 31. d4 {[%emt 0:00:10]} Nc4 {[%emt 0:00:59]} 32. Rfc1 {[%emt 0:00:26]} Rc8 {[%emt 0:00:15]} 33. g4 {[%emt 0:00:09]} g6 {[%emt 0:00:02]} 34. h4 {[%emt 0:00:04]} Rc7 {[%emt 0:00:07]} 35. Bd3 {[%emt 0:00:04]} Kd5 {[%emt 0:00:06]} 36. Rc3 {[%emt 0:00:09]} Rc6 {[%emt 0:00:11]} 37. Rac1 {[%emt 0:00:05]} a5 {[%emt 0:00:36]} 38. Bxc4+ {[%emt 0:00:05]} Kd6 {[%emt 0:00:00]} 39. e4 {[%emt 0:00:00]} axb4 {[%emt 0:00:00]} 1-0

[Event "GER-ch Rapid Women 2017"]
[Site "Erfurt"]
[Date "2017.07.29"]
[Round "1"]
[White "Mader, Lena"]
[Black "Mader, Manuela"]
[Result "0-1"]
[ECO "A05"]
[WhiteElo "1880"]
[BlackElo "2203"]
[Annotator "NA"]
[PlyCount "110"]
[EventDate "2017.??.??"]
[EventType "swiss"]
[EventCountry "GER"]
[SourceTitle "playchess.com"]
[Source "ChessBase"]
[SourceQuality "1"]
[TimeControl "1200"]

1. Nf3 {[%emt 0:00:01]} Nf6 {[%emt 0:00:04]} 2. c4 {[%emt 0:00:01]} g6 {[%emt 0:00:03]} 3. d4 {[%emt 0:00:01]} Bg7 {[%emt 0:00:01]} 4. g3 {[%emt 0:00:01]} d6 {[%emt 0:00:02]} 5. Bg2 {[%emt 0:00:06]} O-O {[%emt 0:00:02]} 6. Nc3 {[%emt 0:00:01]} a6 {[%emt 0:00:02]} 7. b3 {[%emt 0:00:27]} c5 {[%emt 0:02:12]} 8. e3 {[%emt 0:00:09]} cxd4 {[%emt 0:00:59]} 9. exd4 {[%emt 0:00:02]} Nc6 {[%emt 0:01:25]} 10. O-O {[%emt 0:00:15]} Bd7 {[%emt 0:00:10]} 11. Bb2 {[%emt 0:00:03]} Rb8 {[%emt 0:00:14]} 12. Re1 {[%emt 0:00:25]} Re8 {[%emt 0:00:04]} 13. a3 {[%emt 0:00:28]} Na5 {[%emt 0:01:13]} 14. Rc1 {[%emt 0:01:45]} Bh6 {[%emt 0:00:28]} 15. Ra1 {[%emt 0:00:13]} Qb6 {[%emt 0:00:08]} 16. Nd2 {[%emt 0:01:53]} Bxd2 {[%emt 0:00:27]} 17. Qxd2 {[%emt 0:00:01]} Nxb3 {[%emt 0:00:02]} 18. c5 {[%emt 0:00:45]} dxc5 {[%emt 0:03:55]} 19. dxc5 {[%emt 0:00:01]} Qxc5 {[%emt 0:00:03]} 20. Qh6 {[%emt 0:00:39]} Qxf2+ {[%emt 0:02:07]} 21. Kxf2 {[%emt 0:00:01]} Ng4+ {[%emt 0:00:01]} 22. Kg1 {[%emt 0:00:02]} Nxh6 {[%emt 0:00:01]} 23. Nd5 {[%emt 0:00:03]} Nxa1 {[%emt 0:00:40]} 24. Bxa1 {[%emt 0:00:12]} Be6 {[%emt 0:00:06]} 25. Nc7 {[%emt 0:00:45]} Rec8 {[%emt 0:00:03]} 26. Nxe6 {[%emt 0:00:04]} fxe6 {[%emt 0:00:01]} 27. Be5 {[%emt 0:00:10]} Kf7 {[%emt 0:01:06]} 28. Bxb8 {[%emt 0:00:34]} Rxb8 {[%emt 0:00:01]} 29. Rc1 {[%emt 0:00:04]} Nf5 {[%emt 0:00:08]} 30. Rc7 {[%emt 0:00:30]} Nd6 {[%emt 0:00:01]} 31. Rc2 {[%emt 0:01:05]} b5 {[%emt 0:00:05]} 32. Rf2+ {[%emt 0:00:17]} Ke8 {[%emt 0:00:03]} 33. Bh3 {[%emt 0:00:02]} Nf5 {[%emt 0:00:21]} 34. Re2 {[%emt 0:00:21]} Rb6 {[%emt 0:00:01]} 35. g4 {[%emt 0:00:25]} Nd4 {[%emt 0:00:01]} 36. Re4 {[%emt 0:00:11]} Nf3+ {[%emt 0:00:05]} 37. Kf2 {[%emt 0:00:08]} Ng5 {[%emt 0:00:01]} 38. Re3 {[%emt 0:00:06]} a5 {[%emt 0:00:02]} 39. Bf1 {[%emt 0:00:06]} Nf7 {[%emt 0:00:13]} 40. Rb3 {[%emt 0:00:38]} Nd6 {[%emt 0:00:03]} 41. Re3 {[%emt 0:00:05]} Kd7 {[%emt 0:00:04]} 42. Rd3 {[%emt 0:00:07]} b4 {[%emt 0:00:02]} 43. axb4 {[%emt 0:00:09]} axb4 {[%emt 0:00:01]} 44. Rb3 {[%emt 0:00:05]} Ne4+ {[%emt 0:00:02]} 45. Ke2 {[%emt 0:00:12]} Nc5 {[%emt 0:00:02]} 46. Rb2 {[%emt 0:00:07]} b3 {[%emt 0:00:02]} 47. Kd2 {[%emt 0:00:08]} Na4 {[%emt 0:00:03]} 48. Rb1 {[%emt 0:00:11]} Rd6+ {[%emt 0:00:28]} 49. Kc1 {[%emt 0:00:13]} b2+ {[%emt 0:00:06]} 50. Kc2 {[%emt 0:00:08]} Rc6+ {[%emt 0:00:01]} 51. Kb3 {[%emt 0:00:02]} Rc1 {[%emt 0:00:05]} 52. Bd3 {[%emt 0:00:53]} Nc5+ {[%emt 0:00:10]} 53. Kxb2 {[%emt 0:00:08]} Nxd3+ {[%emt 0:00:01]} 54. Ka1 {[%emt 0:00:03]} Rxb1+ {[%emt 0:00:01]} 55. Kxb1 {[%emt 0:00:00]} Kd6 {[%emt 0:00:02]} 0-1